bitfinex-derivatives/quotes_ETHF0:USTF0_20250905
["timestamp","ask_amount","ask_price","bid_price","bid_amount"]
[1757089014517,0.8799,4293.4,4292.7,0.241]
[1757089014518,1.7837,4293.0,4292.7,0.241]
[1757089014721,1.7837,4293.0,4292.8,0.29647977]
[1757089014914,1.7837,4293.0,4292.9,0.29647977]
[1757089015422,1.7837,4293.0,4292.6,0.6559]
[1757089015623,1.7837,4293.0,4292.7,0.28536153]
[1757089015822,1.7837,4293.0,4292.5,0.241]
[1757089016019,1.5434,4292.9,4292.8,0.4449]
[1757089016222,0.8799,4292.9,4292.2,3.2078]
[1757089016415,0.4353,4292.4,4292.3,1.7856]
[1757089017321,0.4353,4292.4,4292.3,1.5446]
[1757089017322,1.0988,4292.4,4292.3,1.5446]
[1757089017518,1.0988,4292.4,4292.3,1.7856]
[1757089017923,1.5434,4292.4,4292.3,1.7856]
[1757089019122,1.5434,4292.4,4292.3,1.5446]
[1757089019424,1.5434,4292.4,4292.3,1.7856]
[1757089020714,1.5434,4292.4,4292.3,0.4449]
[1757089020918,0.6635,4292.3,4292.2,3.2078]
[1757089021120,1.5434,4292.3,4292.2,3.2078]
[1757089021320,1.5434,4292.3,4292.2,3.6527]
[1757089021528,1.5434,4292.3,4292.2,3.2078]
[1757089022523,0.2403,4292.0,4291.7,3.2078]
[1757089022730,1.5434,4291.8,4291.7,3.6527]
[1757089022927,1.5434,4291.8,4291.7,0.4449]
[1757089023517,1.5434,4291.8,4291.3,0.8969]
[1757089023722,0.2403,4292.0,4291.3,0.8969]
[1757089023723,1.5434,4291.4,4291.3,1.7856]
[1757089026321,1.0988,4291.4,4291.3,1.7856]
[1757089027924,1.0988,4291.4,4291.3,0.8887]
[1757089027925,1.5434,4291.4,4291.3,0.8887]
[1757089028323,0.8799,4290.8,4290.7,0.4449]
[1757089028528,1.5434,4290.2,4290.1,3.6527]
[1757089028725,1.5434,4290.2,4289.5,0.2497]
[1757089028726,1.5434,4290.2,4289.5,3.8637]
[1757089029026,1.5434,4289.6,4289.5,4.7524]
[1757089030332,1.5434,4289.1,4289.0,4.9934]
[1757089030923,0.4353,4289.1,4289.0,4.9934]
[1757089031227,1.5434,4289.1,4289.0,4.0965]
[1757089031924,0.2403,4289.5,4289.0,4.3462]
[1757089032123,3.4481,4290.0,4289.4,0.6559]
[1757089032326,1.0988,4289.5,4289.4,1.5446]
[1757089032726,1.5434,4289.5,4289.4,1.5446]
[1757089034233,1.7837,4289.5,4289.4,0.8887]
[1757089034529,1.7837,4289.5,4289.4,1.5446]
[1757089034530,1.5434,4289.5,4289.4,1.5446]
[1757089034730,0.6635,4289.4,4289.0,4.1047]
[1757089034931,1.5434,4289.1,4289.0,4.3086]
[1757089035232,1.5434,4289.1,4289.0,3.6527]
[1757089035832,1.5434,4289.1,4289.0,3.2078]
[1757089036132,1.5434,4289.1,4289.0,3.6527]
[1757089036924,1.5434,4289.1,4289.0,4.7524]
[1757089037421,1.5434,4289.1,4289.0,4.0965]
[1757089037631,1.5434,4289.1,4289.0,3.2078]
[1757089038126,0.8584,4288.7,4288.6,0.4142]
[1757089038338,1.4534,4288.7,4288.6,0.4142]
[1757089039530,1.113,4288.5,4288.4,3.2078]
[1757089039730,1.708,4288.5,4288.0,0.6098]
[1757089039926,1.708,4288.0,4287.9,4.6561]
[1757089040330,1.4534,4288.0,4287.9,4.6561]
[1757089040631,1.113,4288.5,4288.4,1.4483]
[1757089040938,1.113,4288.5,4287.9,3.2078]
[1757089041137,1.708,4288.0,4287.9,3.2078]
[1757089042332,1.708,4288.0,4287.9,3.622]
[1757089042534,1.708,4288.0,4287.9,4.6561]
[1757089042931,1.4534,4288.0,4287.9,4.6561]
[1757089044934,1.708,4288.0,4287.9,3.622]
[1757089045235,1.708,4288.0,4287.9,3.2078]
[1757089046125,1.708,4288.0,4287.9,3.622]
[1757089046526,1.708,4288.0,4287.9,0.4142]
[1757089046825,1.708,4288.0,4287.5,0.6098]
[1757089047425,1.708,4288.0,4287.2,0.212]
[1757089047833,1.708,4288.0,4287.1,0.6098]
[1757089048027,1.4534,4287.2,4287.1,1.4483]
[1757089048429,1.4534,4287.2,4287.1,0.8385]
[1757089048939,1.4534,4287.2,4287.1,1.4483]
[1757089049126,0.4198,4287.2,4287.1,1.4483]
[1757089049331,1.0148,4287.3,4287.2,1.4483]
[1757089049540,1.4534,4287.3,4287.2,0.8385]
[1757089049839,0.595,4287.5,4287.4,0.8385]
[1757089050038,0.595,4287.6,4287.5,0.6098]
[1757089050237,1.0148,4287.6,4287.5,1.4483]
[1757089050833,3.2078,4287.9,4287.5,1.0795]
[1757089051034,1.0148,4287.8,4287.7,1.4483]
[1757089051431,0.4198,4287.8,4287.7,1.4483]
[1757089051632,0.4198,4287.8,4287.5,0.241]
[1757089051633,3.2078,4288.6,4288.0,1.6893]
[1757089051942,1.0148,4288.4,4288.3,1.4483]
[1757089052526,0.8584,4287.5,4287.4,3.622]
[1757089052728,0.8584,4287.5,4286.0,0.241]
[1757089052729,1.113,4287.5,4286.9,3.2078]
[1757089052942,1.113,4287.5,4286.9,4.6561]
[1757089052943,0.4198,4287.0,4286.9,4.6561]
[1757089053329,0.2546,4287.5,4286.9,4.33062757]
[1757089053524,1.113,4287.5,4287.4,0.4142]
[1757089053825,1.949,4287.5,4286.9,3.2078]
[1757089054032,1.113,4287.0,4286.9,3.2078]
[1757089054341,1.708,4287.0,4286.9,3.2078]
[1757089054935,0.595,4286.9,4286.4,3.2078]
[1757089055138,1.4534,4286.5,4286.4,3.622]
[1757089055328,1.708,4286.5,4286.4,3.622]
[1757089056036,0.4956,4287.0,4286.4,4.6561]
[1757089056241,1.949,4287.0,4286.9,0.4142]
[1757089056437,2.52615161,4287.0,4286.9,0.4142]
[1757089056937,1.93115161,4287.0,4286.6,0.6098]
[1757089057134,0.4198,4286.1,4286.0,0.4142]
[1757089057335,0.4956,4286.5,4286.0,0.8385]
[1757089057536,0.57750476,4286.4,4286.3,1.4483]
[1757089057729,1.59230476,4286.4,4286.3,1.4483]
[1757089058934,3.4488,4286.6,4286.3,1.73371071]
[1757089059135,3.2078,4286.6,4286.5,0.8385]
[1757089059339,1.5003118,4287.5,4286.5,1.36490712]
[1757089059340,0.241,4286.7,4286.5,1.36490712]
[1757089059541,4.6612,4287.1,4287.0,1.4483]
[1757089059735,5.23905738,4287.1,4287.0,1.4483]
[1757089059939,5.23905738,4287.1,4287.0,0.8385]
[1757089060843,5.23905738,4287.1,4287.0,0.4142]
[1757089061233,5.23905738,4287.1,4287.0,1.4483]
[1757089061234,0.57785738,4287.1,4287.0,1.4483]
[1757089061436,0.57785738,4287.1,4287.0,1.97470925]
[1757089061737,0.241,4287.4,4287.0,1.36488302]
[1757089061937,0.57802485,4287.3,4287.2,1.4483]
[1757089062136,0.241,4287.7,4287.2,1.73363556]
[1757089062333,0.241,4287.7,4287.6,1.4483]
[1757089062535,0.6608,4287.7,4287.6,1.4483]
[1757089062735,1.23895133,4287.7,4287.6,1.4483]
[1757089062937,1.83395133,4287.7,4287.6,1.4483]
[1757089063437,0.81915133,4287.7,4287.6,1.4483]
[1757089063646,0.57815133,4287.7,4287.6,1.73373766]
[1757089063845,0.57815133,4287.7,4287.6,5.73373766]
[1757089064044,0.241,4288.3,4287.6,5.12393766]
[1757089064244,0.57832757,4288.2,4288.1,0.8385]
[1757089064442,0.57832757,4288.2,4288.1,1.73373766]
[1757089065846,2.03172757,4288.2,4288.1,1.73373766]
[1757089066045,2.03172757,4288.2,4288.1,1.30943766]
[1757089066645,0.57832757,4288.2,4288.1,1.73373766]
[1757089067146,0.99812757,4288.2,4288.1,1.73373766]
[1757089067548,0.57832757,4288.2,4288.1,1.73373766]
[1757089068044,2.03172757,4288.2,4288.1,1.73373766]
[1757089071847,2.03172757,4288.2,4288.1,1.12393766]
[1757089072139,2.03172757,4288.2,4288.1,1.73513766]
[1757089073347,2.03290079,4288.2,4288.1,1.73513766]
[1757089073547,2.03290079,4288.2,4288.1,1.73648697]
[1757089074448,2.03290079,4288.2,4288.1,1.10748697]
[1757089074642,2.03290079,4288.2,4288.1,0.70098697]
[1757089075542,2.03290079,4288.2,4288.1,0.28678697]
[1757089075948,0.632,4287.5,4287.0,0.629]
[1757089076151,1.6425,4287.0,4286.9,0.8214]
[1757089076347,1.6425,4287.0,4286.9,0.4149]
[1757089076546,1.6425,4287.0,4286.6,0.629]
[1757089077148,1.6425,4287.0,4286.5,0.673]
[1757089077653,1.6425,4287.0,4286.9,0.4149]
[1757089078457,1.8825,4287.0,4286.9,0.4149]
[1757089079252,1.8825,4287.0,4286.7,0.629]
[1757089079454,1.8825,4287.0,4286.5,0.673]
[1757089079650,1.8825,4287.0,4286.6,0.629]
[1757089080168,1.8825,4287.0,4286.9,0.4149]
[1757089080554,1.6425,4287.0,4286.9,0.4149]
[1757089080753,3.2078,4287.2,4286.9,0.4149]
[1757089080754,3.2078,4287.2,4287.0,0.2432]
[1757089080955,3.2078,4287.2,4287.1,1.4504]
[1757089081153,4.2219,4287.2,4287.1,1.4504]
[1757089081353,4.6198,4287.2,4287.1,1.4504]
[1757089081554,0.24,4287.5,4287.2,0.629]
[1757089081755,1.8825,4287.5,4287.4,0.8214]
[1757089081955,1.6425,4287.5,4287.4,0.8214]
[1757089083354,3.2078,4288.4,4287.4,1.4504]
[1757089083556,1.412,4287.6,4287.5,1.4504]
[1757089083762,0.4015,4287.1,4287.0,1.0614]
[1757089083958,1.412,4287.1,4287.0,1.4504]
[1757089084360,1.412,4287.1,4286.4,3.8368]
[1757089084654,3.2078,4286.9,4286.2,0.629]
[1757089084862,1.412,4285.8,4285.7,1.0439]
[1757089085158,1.412,4285.8,4285.7,0.4149]
[1757089085753,0.6126,4285.7,4285.6,0.4149]
[1757089085953,1.412,4285.7,4285.6,0.4149]
[1757089086657,1.412,4285.7,4285.3,0.629]
[1757089086857,1.412,4285.6,4285.5,0.4149]
[1757089087864,1.412,4285.6,4285.5,1.0439]
[1757089088962,0.2305,4286.0,4285.0,1.4504]
[1757089088963,1.0141,4285.1,4285.0,1.4504]
[1757089089460,0.4015,4285.1,4285.0,1.4504]
[1757089089654,0.8431,4285.5,4285.0,1.4504]
[1757089089854,0.4015,4285.4,4285.3,0.8214]
[1757089090062,1.0141,4285.4,4285.3,1.4504]
[1757089090462,1.412,4285.4,4285.3,0.4149]
[1757089091063,1.412,4285.4,4284.9,3.8368]
[1757089091363,1.412,4285.3,4285.2,0.4149]
[1757089092156,0.2305,4285.0,4284.9,3.2078]
[1757089092361,1.6425,4285.0,4284.9,3.6227]
[1757089092663,1.6425,4285.0,4284.9,4.6582]
[1757089093258,1.412,4285.0,4284.9,4.6582]
[1757089093657,1.6425,4285.0,4284.9,3.6227]
[1757089094366,1.0141,4285.5,4285.4,0.8214]
[1757089094557,0.6126,4285.7,4285.4,1.4504]
[1757089094760,1.6425,4286.0,4285.9,1.4504]
[1757089095259,1.412,4286.0,4285.9,1.4504]
[1757089095458,1.6425,4286.0,4285.9,0.4149]
[1757089095658,3.2078,4286.4,4285.9,1.4504]
[1757089095864,3.2078,4286.9,4286.4,0.629]
[1757089096062,3.6093,4286.9,4286.8,1.4504]
[1757089096263,4.6198,4286.9,4286.8,1.4504]
[1757089096567,1.412,4286.9,4286.8,0.8214]
[1757089097164,0.6415,4287.4,4287.0,0.2432]
[1757089097362,1.2541,4287.4,4287.3,1.4504]
[1757089097857,1.652,4287.4,4287.3,1.4504]
[1757089098166,0.4015,4287.4,4287.3,1.4504]
[1757089098462,0.1899685,4288.4,4287.8,0.8041]
[1757089098463,0.8738,4288.3,4287.8,0.8041]
[1757089098669,1.0515,4288.2,4288.1,1.3811]
[1757089099056,1.4452,4288.2,4288.1,1.3811]
[1757089101472,1.4452,4288.7,4288.6,0.8041]
[1757089106267,0.4177,4288.7,4288.6,1.3811]
[1757089106564,1.4452,4288.7,4288.6,1.3811]
[1757089108666,1.4452,4288.7,4288.6,0.8041]
[1757089109258,1.4452,4288.7,4288.4,3.2078]
[1757089109259,1.6778,4288.5,4288.4,3.2078]
[1757089109469,1.044,4288.0,4287.9,0.24]
[1757089109668,1.6778,4288.0,4287.9,0.24]
[1757089109863,1.6778,4288.0,4287.9,0.6278]
[1757089110069,1.6778,4288.0,4287.9,0.24]
[1757089110266,1.6778,4288.0,4287.7,3.2078]
[1757089110571,1.4452,4287.8,4287.7,3.2078]
[1757089110763,1.4452,4287.8,4287.7,3.5956]
[1757089113067,1.4452,4287.8,4287.4,0.817]
[1757089113272,1.6778,4287.5,4287.0,0.577]
[1757089113579,1.6778,4287.5,4287.1,0.24]
[1757089114469,1.044,4287.5,4287.4,0.3878]
[1757089114971,1.4452,4287.4,4287.3,0.3878]
[1757089115568,1.4452,4287.4,4287.1,0.24]
[1757089116674,0.8114,4287.4,4286.8,3.2078]
[1757089116874,1.4452,4286.9,4286.8,3.5956]
[1757089117569,1.4452,4286.9,4286.8,3.2078]
[1757089117765,0.2326,4287.0,4286.1,0.577]
[1757089117766,0.2326,4286.5,4286.3,3.4478]
[1757089117968,0.6338,4286.3,4285.6,0.577]
[1757089118169,1.4452,4285.7,4285.6,1.3811]
[1757089118371,1.6852,4286.4,4286.3,0.3878]
[1757089120278,1.4452,4286.4,4286.3,0.3878]
[1757089123269,1.4452,4286.4,4286.3,1.3811]
[1757089123778,1.0515,4286.4,4286.3,1.3811]
[1757089124673,0.2326,4287.0,4286.3,1.3811]
[1757089124674,0.8664,4287.0,4286.5,0.2295]
[1757089124881,1.9178,4287.0,4286.9,1.3811]
[1757089125079,1.9178,4287.0,4286.9,0.8041]
[1757089125876,1.6778,4287.0,4286.9,0.3878]
[1757089126179,1.6778,4287.0,4286.2,3.2078]
[1757089126180,1.284,4287.0,4286.2,3.2078]
[1757089126478,1.4452,4286.3,4286.2,3.2078]
[1757089126776,1.4452,4286.3,4286.2,3.5956]
[1757089127274,1.4452,4286.3,4286.2,0.3878]
[1757089127472,1.4452,4286.3,4285.6,3.2078]
[1757089127473,0.6338,4286.2,4285.6,3.2078]
[1757089127673,1.4452,4285.7,4285.6,4.5889]
[1757089128574,0.24,4286.1,4285.6,4.0119]
[1757089128779,0.2326,4286.5,4286.0,0.227]
[1757089128985,1.6204,4286.5,4286.4,0.4092]
[1757089129177,1.8604,4286.5,4286.4,0.4092]
[1757089129989,1.8604,4286.5,4286.3,1.4048]
[1757089129990,1.3878,4286.4,4286.3,1.4048]
[1757089130586,1.3878,4286.4,4286.0,0.5857]
[1757089130986,0.6069,4286.3,4286.2,0.4092]
[1757089131188,1.3878,4286.3,4286.2,0.4092]
[1757089131591,1.3878,4286.3,4286.2,0.8191]
[1757089131792,1.3878,4286.3,4286.2,1.4048]
[1757089132389,0.3859,4286.3,4286.2,1.4048]
[1757089132985,3.2078,4286.7,4286.3,0.5857]
[1757089133194,0.8469,4286.9,4286.6,1.4048]
[1757089133388,0.6069,4287.2,4287.1,0.8191]
[1757089133580,0.6069,4287.4,4287.3,0.8191]
[1757089133785,4.2006,4287.8,4287.7,0.8191]
[1757089134090,4.2006,4287.8,4287.7,1.4048]
[1757089134490,0.9928,4287.8,4287.7,1.4048]
[1757089135486,1.3878,4288.6,4288.5,0.8191]
[1757089136290,1.3878,4288.6,4288.5,1.4048]
[1757089137392,1.3878,4288.6,4288.5,0.8191]
[1757089137590,1.3878,4288.6,4288.5,1.4048]
[1757089140494,1.3878,4288.6,4288.5,0.4092]
[1757089140994,1.3878,4288.6,4288.5,1.4048]
[1757089142093,1.3878,4288.6,4288.5,0.8191]
[1757089142295,1.3878,4288.6,4288.5,1.4048]
[1757089143490,0.2234,4288.5,4288.2,3.2078]
[1757089143690,1.3878,4288.3,4288.2,3.617]
[1757089144093,1.3878,4287.6,4287.5,1.4048]
[1757089145498,1.3878,4287.6,4287.5,0.4092]
[1757089145794,1.3878,4287.6,4287.1,3.7935]
[1757089145795,0.8303,4287.5,4287.1,3.7935]
[1757089145988,0.8303,4287.5,4287.1,3.2078]
[1757089145989,1.3878,4287.2,4287.1,3.2078]
[1757089147894,3.5937,4287.8,4287.7,0.8191]
[1757089148097,3.5937,4287.8,4287.7,1.4048]
[1757089148297,4.2006,4287.8,4287.7,1.4048]
[1757089148493,4.5956,4287.8,4287.1,3.2078]
[1757089148799,1.3878,4287.2,4287.1,4.0269]
[1757089149401,1.3878,4287.2,4287.1,4.6126]
[1757089149695,1.3878,4287.2,4287.1,3.2078]
[1757089151091,1.3878,4287.2,4286.8,0.24]
[1757089151296,1.6278,4287.2,4286.8,0.24]
[1757089151799,1.3878,4286.9,4286.8,0.6492]
[1757089152399,1.3878,4286.9,4286.8,1.6448]
[1757089152601,0.3859,4286.9,4286.8,1.6448]
[1757089153289,1.3878,4286.9,4286.8,0.24]
[1757089153690,0.6069,4286.8,4286.4,4.0335]
[1757089153893,1.3878,4286.5,4286.4,4.8526]
[1757089154094,0.2234,4287.0,4286.4,4.8526]
[1757089154289,0.3859,4286.5,4286.4,4.8526]
[1757089154494,0.9928,4286.5,4286.4,4.8526]
[1757089154702,0.3859,4286.5,4286.4,4.8526]
[1757089155793,0.9928,4286.5,4286.4,4.8526]
[1757089155993,1.6112,4286.5,4286.4,0.8191]
[1757089156394,1.6112,4286.5,4286.4,0.4092]
[1757089156600,1.6112,4286.5,4286.2,0.24]
[1757089156991,1.0043,4286.5,4286.2,0.24]
[1757089157197,1.0043,4286.5,4286.4,0.4092]
[1757089157805,1.6112,4286.5,4286.4,0.8191]
[1757089158004,1.6112,4286.5,4285.9,3.4478]
[1757089158202,0.6144,4286.4,4285.9,3.4478]
[1757089158398,1.3665,4286.4,4286.3,0.3824]
[1757089159805,1.3665,4286.4,4286.3,0.7767]
[1757089160398,1.3665,4286.4,4286.3,1.3487]
[1757089161406,1.3665,4286.4,4286.3,0.7767]
[1757089161805,1.3665,4286.4,4286.3,0.3824]
[1757089162204,1.3665,4286.4,4285.9,0.812]
[1757089162400,0.2234,4286.5,4285.9,0.812]
[1757089162609,1.6031,4286.0,4285.9,0.9544]
[1757089162996,1.6031,4286.0,4285.9,1.3487]
[1757089163705,1.3665,4286.0,4285.9,1.3487]
[1757089163908,0.9755,4286.5,4286.4,1.3487]
[1757089164103,1.2155,4286.5,4286.4,1.3487]
[1757089164302,1.2155,4286.5,4286.4,0.7767]
[1757089164497,1.8299,4286.5,4286.4,0.7767]
[1757089165404,0.3731,4286.8,4286.7,1.3487]
[1757089165810,0.2366,4288.0,4286.8,0.572]
[1757089165811,3.2078,4287.9,4286.8,0.572]
[1757089166004,3.2078,4287.9,4287.7,0.3824]
[1757089166005,1.94377682,4287.8,4287.7,0.3824]
[1757089166512,1.3665,4287.8,4287.7,0.3824]
[1757089166807,1.3665,4287.8,4287.4,0.572]
[1757089167204,1.3665,4287.8,4287.7,0.3824]
[1757089167503,1.3665,4287.8,4287.7,1.3487]
[1757089167708,1.3665,4287.8,4287.7,0.7767]
[1757089168607,1.3665,4287.8,4287.7,1.3487]
[1757089170609,0.6144,4288.3,4287.8,0.572]
[1757089170908,0.24,4288.9,4288.4,0.7767]
[1757089171110,1.6065,4288.9,4288.8,0.3824]
[1757089171911,1.6065,4288.9,4288.1,0.572]
[1757089172113,1.6065,4288.9,4288.2,0.28745719]
[1757089172409,1.6065,4288.9,4288.1,0.572]
[1757089172604,0.3731,4288.3,4288.2,0.66989012]
[1757089172809,0.9875,4288.3,4288.2,1.63619012]
[1757089173411,0.24,4288.8,4288.2,1.06419012]
[1757089173609,0.24,4288.8,4288.0,0.2198]
[1757089173610,1.6065,4288.8,4288.7,0.7767]
[1757089173809,1.6065,4288.8,4288.7,1.63620487]
[1757089174002,3.4444,4289.0,4288.7,1.63620487]
[1757089174208,3.4444,4289.0,4288.9,1.3487]
[1757089174209,4.1953,4289.0,4288.9,1.3487]
[1757089174416,0.24,4289.4,4288.9,1.06413474]
[1757089174608,0.24,4289.4,4289.0,1.3487]
[1757089174609,0.3731,4289.1,4289.0,1.3487]
[1757089174811,1.55408287,4289.9,4289.8,0.3824]
[1757089175112,1.55408287,4289.9,4289.5,0.572]
[1757089175113,1.6065,4289.9,4289.1,0.572]
[1757089176212,1.83963,4289.9,4289.1,0.572]
[1757089176509,0.3731,4288.9,4288.8,3.9845]
[1757089176711,0.3731,4289.0,4288.9,0.572]
[1757089176911,0.9875,4289.0,4288.9,1.63667421]
[1757089177108,1.6031,4289.0,4288.9,1.06467421]
[1757089177510,1.6031,4289.0,4288.9,0.7767]
[1757089180417,1.6031,4289.0,4288.9,1.3487]
[1757089180619,1.6031,4289.0,4288.9,0.3824]
[1757089181113,1.6031,4289.0,4288.8,3.2078]
[1757089181114,0.6144,4288.9,4288.3,3.2078]
[1757089181323,1.3665,4288.4,4288.3,3.9845]
[1757089181819,1.3665,4288.4,4288.3,4.5565]
[1757089182522,1.3665,4288.9,4288.8,0.7767]
[1757089182912,1.3665,4288.9,4288.8,0.3824]
[1757089183320,0.7521,4288.9,4288.3,3.2078]
[1757089183520,0.9875,4288.4,4288.3,4.5565]
[1757089184417,1.3665,4288.4,4288.3,4.5565]
[1757089186425,1.3665,4288.4,4288.3,3.9845]
[1757089187021,1.3665,4288.4,4287.9,0.572]
[1757089187217,1.6031,4288.0,4287.9,0.3824]
[1757089187527,1.6031,4288.0,4287.9,1.3487]
[1757089188525,1.3665,4288.0,4287.9,1.3487]
[1757089189123,1.6008,4288.0,4287.9,1.3487]
[1757089190420,0.2366,4288.5,4287.9,1.3487]
[1757089190421,0.5433,4288.4,4287.9,1.3487]
[1757089190726,1.2276,4288.5,4288.4,1.3378]
[1757089191128,1.7709,4288.5,4288.4,1.3378]
[1757089191621,3.2078,4288.8,4288.7,1.3378]
[1757089192030,3.2078,4289.4,4289.3,1.3378]
[1757089192322,3.7511,4289.9,4289.3,0.7565]
[1757089192624,3.9588,4289.9,4289.8,0.3736]
[1757089193122,32.43,4290.0,4289.8,1.3378]
[1757089193428,1.1679,4290.0,4289.9,1.3378]
[1757089193628,1.5343,4290.0,4289.9,1.3378]
[1757089194729,1.7686,4290.0,4289.9,1.3378]
[1757089195829,1.7686,4290.0,4289.9,0.7565]
[1757089196030,1.7686,4290.0,4289.5,0.5813]
[1757089196229,0.3846,4289.1,4289.0,1.3378]
[1757089196431,0.9279,4289.1,4289.0,1.62628805]
[1757089197029,1.2943,4289.1,4289.0,0.28848805]
[1757089197324,0.2343,4289.0,4288.3,3.4478]
[1757089197525,0.5433,4288.6,4288.5,0.5813]
[1757089197724,0.9279,4288.6,4288.5,1.62557814]
[1757089198722,1.2943,4288.6,4288.5,0.28777814]
[1757089198925,1.2943,4288.6,4288.5,0.66137814]
[1757089199123,1.2943,4288.6,4288.5,1.62557814]
[1757089200030,1.2943,4288.6,4288.5,1.04427814]
[1757089201422,1.2943,4288.6,4288.5,0.28777814]
[1757089202327,1.2943,4288.6,4288.5,0.66137814]
[1757089202622,1.1679,4288.6,4288.5,1.62557814]
[1757089203432,0.9279,4288.6,4288.5,1.62557814]
[1757089203737,1.2943,4288.6,4288.5,1.62557814]
[1757089204236,3.8324,4288.9,4288.8,1.3378]
[1757089204436,0.3846,4288.9,4288.8,1.62677191]
[1757089204736,3.4421,4289.5,4288.8,0.28897191]
[1757089204929,1.5343,4289.4,4289.3,1.3378]
[1757089205130,1.2943,4289.4,4289.3,1.3378]
[1757089205329,1.5343,4289.4,4289.3,0.7565]
[1757089206734,0.2343,4289.0,4288.9,0.5813]
[1757089206933,1.2943,4288.7,4288.6,1.3378]
[1757089207237,1.2943,4288.7,4288.6,1.62685799]
[1757089207751,3.4421,4289.5,4288.6,1.62685799]
[1757089207932,1.2943,4289.4,4289.3,1.3378]
[1757089208734,0.3846,4289.4,4289.3,1.3378]
[1757089209039,1.2943,4289.4,4289.3,1.04559553]
[1757089209243,1.2943,4289.4,4289.3,0.66269553]
[1757089209537,3.2078,4289.5,4289.3,1.62689553]
[1757089209736,4.3747,4290.0,4289.9,1.3378]
[1757089209930,4.3747,4290.0,4289.9,1.62690297]
[1757089210234,0.3846,4290.0,4289.9,1.62690297]
[1757089210430,0.2343,4290.5,4290.2,0.7565]
[1757089210635,0.5433,4290.5,4290.4,1.3378]
[1757089210830,3.2078,4290.9,4290.8,0.3736]
[1757089210831,4.7411,4290.9,4290.8,0.3736]
[1757089211037,4.7411,4290.9,4290.1,0.5813]
[1757089211237,4.7411,4290.9,4290.2,0.28898639]
[1757089211438,4.7411,4290.9,4290.3,0.28898639]
[1757089211636,4.7411,4290.9,4290.4,0.28898639]
[1757089211844,4.7411,4290.9,4290.1,0.5813]
[1757089212039,4.5021,4290.9,4290.8,0.3736]
[1757089212342,0.5433,4291.9,4290.8,4.38789298]
[1757089212645,0.5433,4291.9,4291.8,3.2078]
[1757089212834,0.2343,4292.0,4291.8,3.82898555]
[1757089213036,0.7776,4292.0,4291.9,0.62118555]
[1757089214039,1.1622,4292.0,4291.9,0.62118555]
[1757089215148,1.5286,4292.0,4291.9,0.62118555]
[1757089216333,0.5433,4292.4,4291.9,0.62118555]
[1757089216540,0.5433,4292.4,4291.8,3.2078]
[1757089216541,0.5433,4291.9,4291.8,3.2078]
[1757089216737,0.5433,4291.9,4291.8,3.84577147]
[1757089218140,0.9474,4292.4,4291.8,3.84577147]
[1757089218341,0.9474,4292.4,4292.3,3.2078]
[1757089219141,0.5788,4292.4,4292.3,3.2078]
[1757089219338,0.9474,4292.9,4292.3,3.4468]
[1757089219539,0.5788,4292.8,4292.4,0.63727589]
[1757089219737,0.2343,4293.0,4292.3,3.2078]
[1757089219738,1.31,4292.4,4292.3,3.2078]
[1757089223139,0.7312,4291.8,4291.6,3.2078]
[1757089223343,1.31,4291.7,4291.6,3.2078]
[1757089225537,0.232,4291.5,4291.1,0.239]
[1757089225742,1.31,4291.2,4291.1,0.239]
[1757089226047,0.5788,4291.2,4291.1,0.5618243]
[1757089226647,0.5788,4291.9,4291.1,4.86784259]
[1757089226948,0.232,4292.0,4291.7,3.2078]
[1757089227149,0.5788,4291.9,4291.7,3.2078]
[1757089227340,0.232,4292.0,4291.7,3.2078]
[1757089227544,0.3686,4291.9,4291.7,3.2078]
[1757089227750,1.31,4291.8,4291.2,3.2078]
[1757089227951,0.7312,4291.4,4291.3,0.56177372]
[1757089228144,1.31,4291.4,4291.3,0.56177372]
[1757089228542,1.31,4291.4,4291.3,0.32277372]
[1757089228750,1.31,4291.4,4291.3,0.239]
[1757089229347,0.9474,4291.4,4291.3,0.239]
[1757089229652,0.5788,4291.4,4291.3,0.239]
[1757089230151,0.9474,4291.4,4291.3,0.239]
[1757089231253,0.5788,4291.4,4291.3,0.239]
[1757089231448,0.232,4292.0,4291.3,0.54546778]
[1757089231751,0.232,4292.0,4291.4,0.30646778]
[1757089231752,0.9474,4291.8,4291.4,0.30646778]
[1757089231949,0.9474,4291.9,4291.5,0.239]
[1757089232150,0.3686,4291.7,4291.5,0.239]
[1757089232353,0.5788,4291.6,4291.5,0.239]
[1757089232546,0.9474,4291.6,4291.5,0.54559867]
[1757089233056,1.31,4291.6,4291.5,0.54559867]
[1757089233454,1.31,4291.6,4291.5,0.30659867]
[1757089233647,0.5788,4291.2,4290.5,3.2078]
[1757089233952,0.9474,4290.7,4290.6,0.54595954]
[1757089235160,0.5788,4290.7,4290.6,0.54595954]
[1757089235949,0.8108,4291.0,4290.6,0.54595954]
[1757089236256,0.5788,4290.9,4290.7,0.30695954]
[1757089236455,0.5788,4290.9,4290.8,0.54595954]
[1757089236649,0.232,4291.0,4290.8,0.54595954]
[1757089236847,0.8108,4291.0,4290.9,0.30695954]
[1757089238058,1.1794,4291.0,4290.9,0.30695954]
[1757089240559,1.542,4291.0,4290.9,0.30695954]
[1757089242853,1.542,4291.0,4290.9,0.54595954]
[1757089243361,1.542,4291.0,4290.9,0.53439644]
[1757089243558,1.542,4291.0,4290.9,0.239]